{"text_format":"3","workbook":"xlsx","n_sheets":2,"sheets":["Budsjettsammendrag","Budsjettdetaljer"],"not_rendered":{"images":1,"defined_names":1},"read":"whole","date_system":"1900"}

{"sheet":"Budsjettsammendrag","index":0,"n_rows":28,"n_cols":7,"rows_kept":28}
[{"$nulls":6}," "]
[]
[null,"TOTALT BRYLLUPSBUDSJETT",{"v":20000,"d":"kr 20,000"}]
[]
[null,"UTGIFTER","Tildeling \n%","Tildelt budsjett","Estimerte \nKostnader","Faktiske \nKostnader"]
[null,"Bryllupsfest",{"v":0.5,"d":"50%"},{"$f":"Totalt_bryllupsbudsjett*Budsjettsammendrag!$C6","v":{"v":10000,"d":"kr 10,000"}},{"$f":"Tabell_Bryllupsfest[[#Totals],[Estimerte kostnader]]","v":{"v":0,"d":"kr 0"}},{"$f":"Tabell_Bryllupsfest[[#Totals],[Faktiske kostnader]]","v":{"v":0,"d":"kr 0"}}]
[null,"Antrekk",{"v":0.1,"d":"10%"},{"$f":"Totalt_bryllupsbudsjett*Budsjettsammendrag!$C7","v":{"v":2000,"d":"kr 2,000"}},{"$f":"Tabell_Antrekk[[#Totals],[Estimerte kostnader]]","v":{"v":0,"d":"kr 0"}},{"$f":"Tabell_Antrekk[[#Totals],[Faktiske kostnader]]","v":{"v":0,"d":"kr 0"}}]
[null,"Blomster og dekorasjoner",{"v":0.1,"d":"10%"},{"$f":"Totalt_bryllupsbudsjett*Budsjettsammendrag!$C8","v":{"v":2000,"d":"kr 2,000"}},{"$f":"Tabell_BlomsterogDekorasjoner[[#Totals],[Estimerte kostnader]]","v":{"v":0,"d":"kr 0"}},{"$f":"Tabell_BlomsterogDekorasjoner[[#Totals],[Faktiske kostnader]]","v":{"v":0,"d":"kr 0"}}]
[null,"Musikk",{"v":0.1,"d":"10%"},{"$f":"Totalt_bryllupsbudsjett*Budsjettsammendrag!$C9","v":{"v":2000,"d":"kr 2,000"}},{"$f":"Tabell_Musikk[[#Totals],[Estimerte kostnader]]","v":{"v":0,"d":"kr 0"}},{"$f":"Tabell_Musikk[[#Totals],[Faktiske kostnader]]","v":{"v":0,"d":"kr 0"}}]
[null,"Fotografier og video",{"v":0.1,"d":"10%"},{"$f":"Totalt_bryllupsbudsjett*Budsjettsammendrag!$C10","v":{"v":2000,"d":"kr 2,000"}},{"$f":"Tabell_FotografierogVideo[[#Totals],[Estimerte kostnader]]","v":{"v":0,"d":"kr 0"}},{"$f":"Tabell_FotografierogVideo[[#Totals],[Faktiske kostnader]]","v":{"v":0,"d":"kr 0"}}]
[null,"Gaver til gjester og gaver",{"v":0.03,"d":"3%"},{"$f":"Totalt_bryllupsbudsjett*Budsjettsammendrag!$C11","v":{"v":600,"d":"kr 600"}},{"$f":"Tabell_GavertilGjesterogGaver[[#Totals],[Estimerte kostnader]]","v":{"v":0,"d":"kr 0"}},{"$f":"Tabell_GavertilGjesterogGaver[[#Totals],[Faktiske kostnader]]","v":{"v":0,"d":"kr 0"}}]
[null,"Vielse",{"v":0.02,"d":"2%"},{"$f":"Totalt_bryllupsbudsjett*Budsjettsammendrag!$C12","v":{"v":400,"d":"kr 400"}},{"$f":"Tabell_Vielse[[#Totals],[Estimerte kostnader]]","v":{"v":0,"d":"kr 0"}},{"$f":"Tabell_Vielse[[#Totals],[Faktiske kostnader]]","v":{"v":0,"d":"kr 0"}}]
[null,"Skrivepapir",{"v":0.02,"d":"2%"},{"$f":"Totalt_bryllupsbudsjett*Budsjettsammendrag!$C13","v":{"v":400,"d":"kr 400"}},{"$f":"Tabell_Skrivepapir[[#Totals],[Estimerte kostnader]]","v":{"v":0,"d":"kr 0"}},{"$f":"Tabell_Skrivepapir[[#Totals],[Faktiske kostnader]]","v":{"v":0,"d":"kr 0"}}]
[null,"Gifteringer",{"v":0.02,"d":"2%"},{"$f":"Totalt_bryllupsbudsjett*Budsjettsammendrag!$C14","v":{"v":400,"d":"kr 400"}},{"$f":"Tabell_Gifteringer[[#Totals],[Estimerte kostnader]]","v":{"v":0,"d":"kr 0"}},{"$f":"Tabell_Gifteringer[[#Totals],[Faktiske kostnader]]","v":{"v":0,"d":"kr 0"}}]
[null,"Transport",{"v":0.01,"d":"1%"},{"$f":"Totalt_bryllupsbudsjett*Budsjettsammendrag!$C15","v":{"v":200,"d":"kr 200"}},{"$f":"Tabell_Transport[[#Totals],[Estimerte kostnader]]","v":{"v":0,"d":"kr 0"}},{"$f":"Tabell_Transport[[#Totals],[Faktiske kostnader]]","v":{"v":0,"d":"kr 0"}}]
[null,"Totalt",{"$f":"SUM(C6:C15)","v":{"v":1,"d":"100%"}},{"$f":"SUM(D6:D15)","v":{"v":20000,"d":"kr 20,000"}},{"v":0,"d":"kr 0"},{"v":0,"d":"kr 0"}]
[]
[null,"BIDRAG"]
[null,"Finansieringskilde","Bidrag"]
[null,"Sparing",{"v":10000,"d":"kr 10,000"}]
[null,"Mor og far til Partner 1",{"v":4000,"d":"kr 4,000"}]
[null,"Besteforeldre til Partner 1",{"v":2000,"d":"kr 2,000"}]
[null,"Mor og far til Partner 2",{"v":4000,"d":"kr 4,000"}]
[null,"Besteforeldre til Partner 2",{"v":4000,"d":"kr 4,000"}]
[null,"Andre bidrag",{"v":2000,"d":"kr 2,000"}]
[null,"Totalt",{"$f":"SUBTOTAL(109,Tabell_Bidrag[Bidrag])","v":{"v":26000,"d":"kr 26,000"}}]
[]
[null,{"$f":"IF(Tabell_Bidrag[[#Totals],[Bidrag]]<Totalt_bryllupsbudsjett,\"Differanse som skal oppveies\",\"Ekstra tilgjengelige midler\")","v":"Ekstra tilgjengelige midler"},{"$f":"IF(Tabell_Bidrag[[#Totals],[Bidrag]]<Totalt_bryllupsbudsjett,Totalt_bryllupsbudsjett-Tabell_Bidrag[[#Totals],[Bidrag]],Tabell_Bidrag[[#Totals],[Bidrag]]-Totalt_bryllupsbudsjett)","v":{"v":6000,"d":"kr 6,000"}}]

{"sheet":"Budsjettdetaljer","index":1,"n_rows":80,"n_cols":4,"rows_kept":80}
[]
[null,"BRYLLUPSFEST","Estimerte kostnader","Faktiske kostnader"]
[null,"Lokale og leie"]
[null,"Mat og tjeneste"]
[null,"Drikkevarer"]
[null,"Kake"]
[null,"Diverse gebyrer"]
[null,"Totalt",{"$f":"SUBTOTAL(109,Tabell_Bryllupsfest[Estimerte kostnader])","v":{"v":0,"d":"kr 0.00"}},{"$f":"SUBTOTAL(109,Tabell_Bryllupsfest[Faktiske kostnader])","v":{"v":0,"d":"kr 0.00"}}]
[]
[null,"ANTREKK","Estimerte kostnader","Faktiske kostnader"]
[null,"Smoking, dress og/eller kjoler"]
[null,"Endringer"]
[null,"Hodepynt og slør"]
[null,"Tilbehør"]
[null,"Hår og sminke"]
[null,"Diverse gebyrer"]
[null,"Totalt",{"$f":"SUBTOTAL(109,Tabell_Antrekk[Estimerte kostnader])","v":{"v":0,"d":"kr 0.00"}},{"$f":"SUBTOTAL(109,Tabell_Antrekk[Faktiske kostnader])","v":{"v":0,"d":"kr 0.00"}}]
[]
[null,"BLOMSTER OG DEKORASJONER","Estimerte kostnader","Faktiske kostnader"]
[null,"Blomsteroppsatser til vielse"]
[null,"Blomsterjentes knopper og kurv"]
[null,"Ringpute"]
[null,"Buketter"]
[null,"Knapphullsblomster"]
[null,"Brystbuketter"]
[null,"Dekorasjoner til bryllupsfest"]
[null,"Belysning"]
[null,"Diverse gebyrer"]
[null,"Totalt",{"$f":"SUBTOTAL(109,Tabell_BlomsterogDekorasjoner[Estimerte kostnader])","v":{"v":0,"d":"kr 0.00"}},{"$f":"SUBTOTAL(109,Tabell_BlomsterogDekorasjoner[Faktiske kostnader])","v":{"v":0,"d":"kr 0.00"}}]
[]
[null,"MUSIKK","Estimerte kostnader","Faktiske kostnader"]
[null,"Musikere til vielse"]
[null,"Musikere til etterfest"]
[null,"Band, diskjockey eller underholdning til bryllupsfest"]
[null,"Leie av lydsystem og dansegulv"]
[null,"Diverse gebyrer"]
[null,"Totalt",{"$f":"SUBTOTAL(109,Tabell_Musikk[Estimerte kostnader])","v":{"v":0,"d":"kr 0.00"}},{"$f":"SUBTOTAL(109,Tabell_Musikk[Faktiske kostnader])","v":{"v":0,"d":"kr 0.00"}}]
[]
[null,"FOTOGRAFIER OG VIDEO","Estimerte kostnader","Faktiske kostnader"]
[null,"Fotografi"]
[null,"Video"]
[null,"Ekstra kopier og album"]
[null,"Diverse gebyrer"]
[null,"Totalt",{"$f":"SUBTOTAL(109,Tabell_FotografierogVideo[Estimerte kostnader])","v":{"v":0,"d":"kr 0.00"}},{"$f":"SUBTOTAL(109,Tabell_FotografierogVideo[Faktiske kostnader])","v":{"v":0,"d":"kr 0.00"}}]
[]
[null,"GAVER TIL GJESTER OG GAVER","Estimerte kostnader","Faktiske kostnader"]
[null,"Velkomstgaver"]
[null,"Festgaver"]
[null,"Diverse gebyrer"]
[null,"Totalt",{"$f":"SUBTOTAL(109,Tabell_GavertilGjesterogGaver[Estimerte kostnader])","v":{"v":0,"d":"kr 0.00"}},{"$f":"SUBTOTAL(109,Tabell_GavertilGjesterogGaver[Faktiske kostnader])","v":{"v":0,"d":"kr 0.00"}}]
[]
[null,"VIELSE","Estimerte kostnader","Faktiske kostnader"]
[null,"Områdegebyr"]
[null,"Gebyr til forrettende prest eller donasjon til kirke"]
[null,"Diverse gebyrer"]
[null,"Totalt",{"$f":"SUBTOTAL(109,Tabell_Vielse[Estimerte kostnader])","v":{"v":0,"d":"kr 0.00"}},{"$f":"SUBTOTAL(109,Tabell_Vielse[Faktiske kostnader])","v":{"v":0,"d":"kr 0.00"}}]
[]
[null,"SKRIVEPAPIR","Estimerte kostnader","Faktiske kostnader"]
[null,"Sett av datoen-kort"]
[null,"Invitasjoner og invitasjonssvar"]
[null,"Programmer"]
[null,"Kort for sitteplasser og bordplassering"]
[null,"Menykort"]
[null,"Takkekort"]
[null,"Porto"]
[null,"Diverse gebyrer"]
[null,"Totalt",{"$f":"SUBTOTAL(109,Tabell_Skrivepapir[Estimerte kostnader])","v":{"v":0,"d":"kr 0.00"}},{"$f":"SUBTOTAL(109,Tabell_Skrivepapir[Faktiske kostnader])","v":{"v":0,"d":"kr 0.00"}}]
[]
[null,"GIFTERINGER","Estimerte kostnader","Faktiske kostnader"]
[null,"Gifteringer"]
[null,"Ringtilbehør"]
[null,"Totalt",{"$f":"SUBTOTAL(109,Tabell_Gifteringer[Estimerte kostnader])","v":{"v":0,"d":"kr 0.00"}},{"$f":"SUBTOTAL(109,Tabell_Gifteringer[Faktiske kostnader])","v":{"v":0,"d":"kr 0.00"}}]
[]
[null,"TRANSPORT","Estimerte kostnader","Faktiske kostnader"]
[null,"Leie av hovedbil"]
[null,"Leie av gjestebiler"]
[null,"Transport av gjester utenbysfra"]
[null,"Parkeringstjeneste"]
[null,"Diverse gebyrer"]
[null,"Totalt",{"$f":"SUBTOTAL(109,Tabell_Transport[Estimerte kostnader])","v":{"v":0,"d":"kr 0.00"}},{"$f":"SUBTOTAL(109,Tabell_Transport[Faktiske kostnader])","v":{"v":0,"d":"kr 0.00"}}]